bitfinex-derivatives/quotes_BTCF0:USTF0_20251228
["timestamp","ask_amount","ask_price","bid_price","bid_amount"]
[1766902008118,0.05708,87720.0,87711.0,0.0114089]
[1766902008318,0.02470826,87719.0,87711.0,0.0114089]
[1766902008519,0.05708,87720.0,87711.0,0.0114089]
[1766902008729,0.02470826,87719.0,87711.0,0.0114089]
[1766902008930,0.05708,87720.0,87711.0,0.0114089]
[1766902009131,0.02470826,87719.0,87711.0,0.0114089]
[1766902009331,0.05708,87720.0,87711.0,0.0114089]
[1766902009531,0.02470826,87719.0,87711.0,0.0114089]
[1766902009831,0.05708,87720.0,87711.0,0.0114089]
[1766902010133,0.02470826,87719.0,87711.0,0.0114089]
[1766902010427,0.05708,87720.0,87711.0,0.0114089]
[1766902010630,0.02470826,87719.0,87711.0,0.0114089]
[1766902010831,0.05708,87720.0,87711.0,0.0114089]
[1766902011036,0.02470826,87719.0,87711.0,0.0114089]
[1766902011330,0.05708,87720.0,87711.0,0.0114089]
[1766902011524,0.02470827,87719.0,87711.0,0.0114089]
[1766902011721,0.05708,87720.0,87711.0,0.0114089]
[1766902011920,0.02470827,87719.0,87711.0,0.0114089]
[1766902012131,0.05708,87720.0,87711.0,0.0114089]
[1766902012429,0.02470827,87719.0,87711.0,0.0114089]
[1766902012630,0.05708,87720.0,87711.0,0.0114089]
[1766902012831,0.02470828,87719.0,87711.0,0.0114089]
[1766902013030,0.05708,87720.0,87711.0,0.0114089]
[1766902013231,0.02470828,87719.0,87711.0,0.0114089]
[1766902013424,0.05708,87720.0,87711.0,0.0114089]
[1766902013627,0.02470829,87719.0,87711.0,0.0114089]
[1766902013821,0.05708,87720.0,87711.0,0.0114089]
[1766902014022,0.02470829,87719.0,87711.0,0.0114089]
[1766902014321,0.05708,87720.0,87711.0,0.0114089]
[1766902014516,0.0247083,87719.0,87711.0,0.0114089]
[1766902014720,0.05708,87720.0,87711.0,0.0114089]
[1766902014921,0.0247083,87719.0,87711.0,0.0114089]
[1766902015130,0.05708,87720.0,87711.0,0.0114089]
[1766902015332,0.0247083,87719.0,87711.0,0.0114089]
[1766902015636,0.05708,87720.0,87711.0,0.0114089]
[1766902015828,0.02470832,87719.0,87711.0,0.0114089]
[1766902016030,0.05708,87720.0,87711.0,0.0114089]
[1766902016335,0.02470832,87719.0,87711.0,0.0114089]
[1766902016535,0.05708,87720.0,87711.0,0.0114089]
[1766902016730,0.02470835,87719.0,87711.0,0.0114089]
[1766902016924,0.05708,87720.0,87711.0,0.0114089]
[1766902017119,0.02470835,87719.0,87711.0,0.0114089]
[1766902017324,0.05708,87720.0,87711.0,0.0114089]
[1766902017525,0.02470838,87719.0,87711.0,0.0114089]
[1766902017732,0.05708,87720.0,87711.0,0.0114089]
[1766902017933,0.02470838,87719.0,87711.0,0.0114089]
[1766902018136,0.05708,87720.0,87711.0,0.0114089]
[1766902018335,0.02470838,87719.0,87711.0,0.0114089]
[1766902018536,0.05708,87720.0,87711.0,0.0114089]
[1766902018837,0.02470841,87719.0,87711.0,0.0114089]
[1766902019037,0.05708,87720.0,87711.0,0.0114089]
[1766902019336,0.02470841,87719.0,87711.0,0.0114089]
[1766902019537,0.05708,87720.0,87711.0,0.0114089]
[1766902019728,0.02470845,87719.0,87711.0,0.0114089]
[1766902019928,0.05708,87720.0,87711.0,0.0114089]
[1766902020129,0.02470845,87719.0,87711.0,0.0114089]
[1766902020329,0.05708,87720.0,87711.0,0.0114089]
[1766902020531,0.02470849,87719.0,87710.0,0.0114091]
[1766902020830,0.05708,87720.0,87710.0,0.0114091]
[1766902021137,0.02470847,87719.0,87712.0,0.0114088]
[1766902021326,0.05708,87720.0,87712.0,0.0114088]
[1766902021529,0.0247085,87719.0,87712.0,0.0114088]
[1766902021726,0.05708,87720.0,87712.0,0.0114088]
[1766902021924,0.0247085,87719.0,87712.0,0.0114088]
[1766902022124,0.05708,87720.0,87709.0,0.0114092]
[1766902022335,0.02470852,87719.0,87709.0,0.0114092]
[1766902022639,0.05708,87720.0,87709.0,0.0114092]
[1766902022838,0.02470856,87719.0,87709.0,0.0114092]
[1766902023039,0.05708,87720.0,87709.0,0.0114092]
[1766902023239,0.02470856,87719.0,87709.0,0.0114092]
[1766902023433,0.05708,87720.0,87709.0,0.0114092]
[1766902023633,0.0247086,87719.0,87709.0,0.0114092]
[1766902023826,0.05708,87720.0,87709.0,0.0114092]
[1766902024030,0.0247086,87719.0,87709.0,0.0114092]
[1766902024240,0.05708,87720.0,87709.0,0.0114092]
[1766902024439,0.02471424,87719.0,87709.0,0.0114092]
[1766902024739,0.02471424,87718.0,87709.0,0.0114092]
[1766902024938,0.05708,87720.0,87709.0,0.0114092]
[1766902025132,0.02471424,87719.0,87709.0,0.0114092]
[1766902025432,0.02471424,87718.0,87709.0,0.0114092]
[1766902025634,0.05708,87720.0,87709.0,0.0114092]
[1766902025932,0.02471426,87719.0,87709.0,0.0114092]
[1766902026132,0.02471426,87718.0,87709.0,0.0114092]
[1766902026334,0.05708,87720.0,87709.0,0.0114092]
[1766902026535,0.02471429,87719.0,87709.0,0.0114092]
[1766902026736,0.02471429,87718.0,87709.0,0.0114092]
[1766902026932,0.05708,87720.0,87709.0,0.0114092]
[1766902027142,0.02471429,87719.0,87709.0,0.0114092]
[1766902027342,0.02471429,87718.0,87709.0,0.0114092]
[1766902027641,0.05708,87720.0,87709.0,0.0114092]
[1766902027842,0.02471431,87719.0,87709.0,0.0114092]
[1766902028142,0.02471431,87718.0,87709.0,0.0114092]
[1766902028343,0.05708,87720.0,87709.0,0.0114092]
[1766902028540,0.02471435,87719.0,87709.0,0.0114092]
[1766902028739,0.02471435,87718.0,87709.0,0.0114092]
[1766902028942,0.05708,87720.0,87711.0,0.0114089]
[1766902029145,0.02471435,87719.0,87711.0,0.0114089]
[1766902029440,0.02471435,87718.0,87711.0,0.0114089]
[1766902029640,0.05708,87720.0,87711.0,0.0114089]
[1766902029842,0.02471438,87719.0,87711.0,0.0114089]
[1766902030042,0.02471438,87718.0,87711.0,0.0114089]
[1766902030242,0.05708,87720.0,87711.0,0.0114089]
[1766902030444,0.02471439,87719.0,87711.0,0.0114089]
[1766902030748,0.02471439,87718.0,87711.0,0.0114089]
[1766902030934,0.05708,87720.0,87711.0,0.0114089]
[1766902031140,0.02471439,87719.0,87711.0,0.0114089]
[1766902031340,0.02471439,87718.0,87711.0,0.0114089]
[1766902031647,0.05708,87720.0,87711.0,0.0114089]
[1766902031946,0.02471439,87719.0,87711.0,0.0114089]
[1766902032147,0.02471439,87718.0,87711.0,0.0114089]
[1766902032348,0.05708,87720.0,87711.0,0.0114089]
[1766902032562,0.02471435,87719.0,87711.0,0.0114089]
[1766902032752,0.02471435,87718.0,87711.0,0.0114089]
[1766902032952,0.05708,87720.0,87711.0,0.0114089]
[1766902033161,0.02471435,87719.0,87711.0,0.0114089]
[1766902033347,0.02471435,87718.0,87711.0,0.0114089]
[1766902033552,0.05708,87720.0,87713.0,0.0114087]
[1766902038956,0.05708,87720.0,87710.0,0.0114091]
[1766902044263,0.00017102,87724.0,87703.0,0.00017102]
[1766902044463,0.00017102,87724.0,87716.0,0.0114083]
[1766902044960,0.00017102,87724.0,87713.0,0.0114087]
[1766902045559,0.02455865,87723.0,87713.0,0.0114087]
[1766902045765,0.02455865,87722.0,87713.0,0.0114087]
[1766902045966,0.02455865,87721.0,87713.0,0.0114087]
[1766902046165,0.00017102,87724.0,87713.0,0.0114087]
[1766902046366,0.02455865,87723.0,87713.0,0.0114087]
[1766902046667,0.02455865,87722.0,87713.0,0.0114087]
[1766902046859,0.08163865,87721.0,87713.0,0.0114087]
[1766902047064,0.05708,87721.0,87713.0,0.0114087]
[1766902047562,0.00017102,87724.0,87713.0,0.0114087]
[1766902047769,0.02455682,87723.0,87715.0,0.0114084]
[1766902047972,0.02455682,87722.0,87715.0,0.0114084]
[1766902048270,0.00017102,87724.0,87715.0,0.0114084]
[1766902048465,0.02455578,87723.0,87715.0,0.0114084]
[1766902048670,8e-08,87722.0,87718.0,0.0114081]
[1766902048861,1e-07,87724.0,87722.0,0.0114075]
[1766902049974,0.05708,87730.0,87724.0,0.0114072]
[1766902050170,0.05708,87731.0,87724.0,0.0114072]
[1766902050465,0.05708,87733.0,87726.0,0.011407]
[1766902052972,0.05708,87733.0,87722.0,0.0114075]
[1766902060485,0.09696,87737.0,87724.0,0.0114072]
[1766902060871,0.02420963,87736.0,87724.0,0.0114072]
[1766902061073,0.02420963,87735.0,87724.0,0.0114072]
[1766902061274,0.09696,87737.0,87724.0,0.0114072]
[1766902061474,0.024209,87736.0,87724.0,0.0114072]
[1766902061784,0.024209,87735.0,87724.0,0.0114072]
[1766902062086,0.09696,87737.0,87724.0,0.0114072]
[1766902062385,0.024209,87736.0,87724.0,0.0114072]
[1766902062570,0.024209,87735.0,87724.0,0.0114072]
[1766902062775,0.09696,87737.0,87724.0,0.0114072]
[1766902062985,0.02420859,87736.0,87724.0,0.0114072]
[1766902063186,0.02420859,87735.0,87724.0,0.0114072]
[1766902063485,0.09696,87737.0,87724.0,0.0114072]
[1766902063687,0.0242084,87736.0,87724.0,0.0114072]
[1766902063873,0.0242084,87735.0,87724.0,0.0114072]
[1766902064185,0.05708,87735.0,87724.0,0.0114072]
[1766902064377,0.00017102,87738.0,87724.0,0.0114072]
[1766902064577,0.17824843,87737.0,87724.0,0.0114072]
[1766902064777,0.02420843,87736.0,87724.0,0.0114072]
[1766902065077,0.02420843,87735.0,87724.0,0.0114072]
[1766902065282,0.02420843,87734.0,87724.0,0.0114072]
[1766902065579,0.02420843,87733.0,87724.0,0.0114072]
[1766902065780,0.15404,87737.0,87724.0,0.0114072]
[1766902066086,0.02420869,87736.0,87724.0,0.0114072]
[1766902066274,0.02420869,87735.0,87724.0,0.0114072]
[1766902066476,0.02420869,87734.0,87724.0,0.0114072]
[1766902066774,0.02420869,87733.0,87724.0,0.0114072]
[1766902066975,0.15404,87737.0,87724.0,0.0114072]
[1766902067180,0.02420918,87736.0,87724.0,0.0114072]
[1766902067379,0.02420918,87735.0,87724.0,0.0114072]
[1766902067585,0.02420918,87734.0,87724.0,0.0114072]
[1766902067886,0.02420918,87733.0,87724.0,0.0114072]
[1766902068075,0.15404,87737.0,87724.0,0.0114072]
[1766902068276,0.0242099,87736.0,87724.0,0.0114072]
[1766902068476,0.0242099,87735.0,87724.0,0.0114072]
[1766902068678,0.0242099,87734.0,87721.0,0.00017102]
[1766902070189,0.0242099,87734.0,87725.0,0.0114071]
[1766902075892,0.0242099,87734.0,87722.0,0.0114076]
[1766902077484,0.05708,87735.0,87722.0,0.0114076]
[1766902077685,0.02423466,87734.0,87722.0,0.0114076]
[1766902077887,0.02423466,87733.0,87722.0,0.0114076]
[1766902078087,0.05708,87735.0,87722.0,0.0114076]
[1766902078290,0.02423466,87734.0,87722.0,0.0114076]
[1766902078598,0.02423466,87733.0,87722.0,0.0114076]
[1766902078895,0.02423466,87732.0,87722.0,0.0114076]
[1766902079095,0.05708,87735.0,87722.0,0.0114076]
[1766902079296,0.02424138,87734.0,87722.0,0.0114076]
[1766902079497,0.02424138,87733.0,87722.0,0.0114076]
[1766902079692,0.02424138,87732.0,87722.0,0.0114076]
[1766902079886,0.05708,87735.0,87722.0,0.0114076]
[1766902080093,0.02424604,87734.0,87722.0,0.0114076]
[1766902080284,0.02424604,87733.0,87722.0,0.0114076]
[1766902080484,0.02424604,87732.0,87724.0,0.0114073]
[1766902080694,0.02424604,87731.0,87724.0,0.0114073]
[1766902080895,0.05708,87735.0,87724.0,0.0114073]
[1766902081097,0.02424766,87734.0,87724.0,0.0114073]
[1766902081284,0.02424766,87733.0,87724.0,0.0114073]
[1766902081486,0.02424766,87732.0,87724.0,0.0114073]
[1766902081684,0.02424766,87731.0,87724.0,0.0114073]
[1766902081986,0.05708,87735.0,87724.0,0.0114073]
[1766902082185,0.02424764,87734.0,87724.0,0.0114073]
[1766902082391,0.02424764,87733.0,87724.0,0.0114073]
[1766902082590,0.02424764,87732.0,87724.0,0.0114073]
[1766902082796,0.02424764,87731.0,87724.0,0.0114073]
[1766902083095,0.05708,87735.0,87724.0,0.0114073]
[1766902083296,0.02424762,87734.0,87724.0,0.0114073]
[1766902083495,0.02424762,87733.0,87724.0,0.0114073]
[1766902083698,0.02424762,87732.0,87724.0,0.0114073]
[1766902083894,0.02424762,87731.0,87724.0,0.0114073]
[1766902084094,0.05708,87735.0,87724.0,0.0114073]
[1766902084294,0.02444855,87734.0,87724.0,0.0114073]
[1766902084597,0.02444855,87733.0,87721.0,0.00017102]
[1766902084798,0.02444855,87732.0,87721.0,0.00017102]
[1766902085098,0.02444855,87731.0,87721.0,0.00017102]
[1766902085396,0.05708,87735.0,87722.0,0.0114075]
[1766902085596,0.02444877,87734.0,87722.0,0.0114075]
[1766902085795,0.02444877,87733.0,87722.0,0.0114075]
[1766902085997,0.02444877,87732.0,87722.0,0.0114075]
[1766902086196,0.02444877,87731.0,87722.0,0.0114075]
[1766902086397,0.05708,87735.0,87722.0,0.0114075]
[1766902086695,0.02444887,87734.0,87722.0,0.0114075]
[1766902086896,0.02444887,87733.0,87722.0,0.0114075]
[1766902087099,0.02444887,87732.0,87722.0,0.0114075]
[1766902087301,0.02444887,87731.0,87722.0,0.0114075]
[1766902087501,0.02444887,87730.0,87722.0,0.0114075]
[1766902087798,0.02444887,87730.0,87712.0,0.05708]
[1766902087799,0.0114061,87734.0,87715.0,0.0114084]
[1766902088001,0.0244494,87733.0,87715.0,0.0114084]
[1766902088299,0.0244494,87732.0,87715.0,0.0114084]
[1766902088508,0.0244494,87731.0,87717.0,0.0114082]
[1766902088800,0.0244494,87730.0,87717.0,0.0114082]
[1766902088994,0.0244494,87729.0,87717.0,0.0114082]
[1766902089187,0.05708,87735.0,87717.0,0.0114082]
[1766902089390,0.02473485,87734.0,87719.0,0.0114078]
[1766902089690,0.02473485,87733.0,87719.0,0.0114078]
[1766902089890,0.02473485,87732.0,87719.0,0.0114078]
[1766902090089,0.02473485,87731.0,87719.0,0.0114078]
[1766902090290,0.02473485,87730.0,87719.0,0.0114078]
[1766902090588,0.02473485,87729.0,87719.0,0.0114078]
[1766902090790,0.05708,87735.0,87719.0,0.0114078]
[1766902090987,0.02473408,87734.0,87719.0,0.0114078]
[1766902091188,0.02473408,87733.0,87719.0,0.0114078]
[1766902091388,0.02473408,87732.0,87719.0,0.0114078]
[1766902091602,0.02473408,87731.0,87719.0,0.0114078]
[1766902091902,0.02473408,87730.0,87719.0,0.0114078]
[1766902092202,0.02473408,87729.0,87719.0,0.0114078]
[1766902092402,0.02473408,87728.0,87719.0,0.0114078]
[1766902092701,0.068486,87735.0,87719.0,0.0114078]
[1766902092901,0.02473205,87734.0,87719.0,0.0114078]
[1766902093093,0.02473205,87733.0,87719.0,0.0114078]
[1766902093293,0.02473205,87732.0,87719.0,0.0114078]
[1766902093493,0.02473205,87731.0,87719.0,0.0114078]
[1766902093788,0.02473205,87730.0,87719.0,0.0114078]
[1766902093995,0.02473205,87729.0,87719.0,0.0114078]
[1766902094192,0.02473205,87728.0,87719.0,0.0114078]
[1766902094387,0.068486,87735.0,87719.0,0.0114078]
[1766902094587,0.0247304,87734.0,87719.0,0.0114078]
[1766902094796,0.0247304,87733.0,87719.0,0.0114078]
[1766902095002,0.0247304,87732.0,87719.0,0.0114078]
[1766902095203,0.0247304,87731.0,87719.0,0.0114078]
[1766902095394,0.0247304,87730.0,87719.0,0.0114078]
[1766902095595,0.0247304,87729.0,87716.0,0.0114083]
[1766902095794,0.0247304,87728.0,87716.0,0.0114083]
[1766902095996,0.068486,87735.0,87716.0,0.0114083]
[1766902096297,0.0114062,87733.0,87716.0,0.0114083]
[1766902096598,0.0247297,87732.0,87716.0,0.0114083]
[1766902096804,0.0247297,87731.0,87716.0,0.0114083]
[1766902096996,0.0247297,87730.0,87716.0,0.0114083]
[1766902097196,0.0247297,87729.0,87716.0,0.0114083]
[1766902097403,0.0247297,87728.0,87716.0,0.0114083]
[1766902097605,0.0114062,87733.0,87716.0,0.0114083]
[1766902097800,0.02472855,87732.0,87716.0,0.0114083]
[1766902098001,0.02472855,87731.0,87718.0,0.011408]
[1766902098203,0.02472855,87730.0,87718.0,0.011408]
[1766902098397,0.02472855,87729.0,87718.0,0.011408]
[1766902098597,0.02472855,87728.0,87721.0,0.0114077]
[1766902098894,0.05708,87735.0,87721.0,0.0114077]
[1766902099096,0.02472791,87734.0,87721.0,0.0114077]
[1766902099300,0.02472791,87733.0,87721.0,0.0114077]
[1766902099504,0.02472791,87732.0,87721.0,0.0114077]
[1766902099704,0.02472791,87731.0,87721.0,0.0114077]
[1766902099901,0.02472791,87730.0,87721.0,0.0114077]
[1766902100101,0.02472791,87729.0,87721.0,0.0114077]
[1766902100303,0.05708,87735.0,87721.0,0.0114077]
[1766902100499,0.02472754,87734.0,87721.0,0.0114077]
[1766902100691,0.02472754,87733.0,87721.0,0.0114077]
[1766902100897,0.02472754,87732.0,87721.0,0.0114077]
[1766902101094,0.02472754,87731.0,87721.0,0.0114077]
[1766902101297,0.02472754,87730.0,87721.0,0.0114077]
[1766902101500,0.02472754,87729.0,87721.0,0.0114077]
[1766902101701,0.05708,87735.0,87721.0,0.0114077]
[1766902101903,0.02472748,87734.0,87721.0,0.0114077]
[1766902102105,0.02472748,87733.0,87721.0,0.0114077]
[1766902102305,0.02472748,87732.0,87721.0,0.0114077]
[1766902102497,0.02472748,87731.0,87721.0,0.0114077]
[1766902102695,0.02472748,87730.0,87721.0,0.0114077]
[1766902102899,0.02472748,87729.0,87721.0,0.0114077]
[1766902103097,0.05708,87735.0,87721.0,0.0114077]
[1766902103300,0.02472756,87734.0,87721.0,0.0114077]
[1766902103507,0.02472756,87733.0,87721.0,0.0114077]
[1766902103808,0.02472756,87732.0,87721.0,0.0114077]
[1766902104000,0.02472756,87731.0,87721.0,0.0114077]
[1766902104203,0.02472756,87730.0,87718.0,0.011408]
[1766902104500,0.02472756,87729.0,87718.0,0.011408]
[1766902104701,0.011406,87734.0,87718.0,0.011408]
[1766902104902,0.02472774,87733.0,87718.0,0.011408]
[1766902105101,0.02472774,87732.0,87718.0,0.011408]
[1766902105312,0.02472774,87731.0,87718.0,0.011408]
[1766902105512,0.02472774,87730.0,87718.0,0.011408]
[1766902105808,0.02472774,87729.0,87718.0,0.011408]
[1766902106016,0.02472798,87728.0,87718.0,0.011408]
[1766902106203,0.011406,87734.0,87718.0,0.011408]
[1766902106404,0.02472803,87733.0,87718.0,0.011408]
[1766902106704,0.02472803,87732.0,87718.0,0.011408]
[1766902106905,0.02472803,87731.0,87718.0,0.011408]
[1766902107104,0.02472803,87730.0,87718.0,0.011408]
[1766902107305,0.02472803,87729.0,87718.0,0.011408]
[1766902107508,0.02472803,87728.0,87715.0,0.00017102]
[1766902107713,0.09696,87733.0,87719.0,0.0114079]
[1766902108012,0.02472841,87732.0,87719.0,0.0114079]
[1766902108213,0.02472841,87731.0,87719.0,0.0114079]
[1766902108511,0.02472841,87730.0,87719.0,0.0114079]
[1766902108709,0.02472841,87729.0,87719.0,0.0114079]
[1766902108913,0.09696,87733.0,87719.0,0.0114079]
[1766902109114,0.0247288,87732.0,87719.0,0.0114079]
[1766902109304,0.0247288,87731.0,87719.0,0.0114079]
[1766902109505,0.0247288,87730.0,87719.0,0.0114079]
[1766902109708,0.0247288,87729.0,87719.0,0.0114079]
[1766902110007,0.0247288,87728.0,87719.0,0.0114079]
[1766902110205,0.09696,87733.0,87719.0,0.0114079]
[1766902110405,0.02472942,87732.0,87719.0,0.0114079]
[1766902110604,0.02472942,87731.0,87719.0,0.0114079]
[1766902110806,0.02472942,87730.0,87719.0,0.0114079]
[1766902111004,0.02472942,87729.0,87719.0,0.0114079]
[1766902111217,0.02472942,87728.0,87719.0,0.0114079]
[1766902111413,0.09696,87733.0,87719.0,0.0114079]
[1766902111617,0.02472999,87732.0,87719.0,0.0114079]
[1766902111805,0.02472999,87731.0,87719.0,0.0114079]
[1766902112006,0.02472999,87730.0,87719.0,0.0114079]
[1766902112204,0.02472999,87729.0,87719.0,0.0114079]
[1766902112406,0.02472999,87728.0,87719.0,0.0114079]
[1766902112606,0.09696,87733.0,87719.0,0.0114079]
[1766902112905,0.02473066,87732.0,87719.0,0.0114079]
[1766902113104,0.02473066,87731.0,87719.0,0.0114079]
[1766902113406,0.02473066,87730.0,87719.0,0.0114079]
[1766902113602,0.02473066,87729.0,87719.0,0.0114079]
[1766902113798,0.02473066,87728.0,87719.0,0.0114079]
[1766902114003,0.09696,87733.0,87719.0,0.0114079]
[1766902114205,0.02473145,87732.0,87719.0,0.0114079]
[1766902114405,0.02473145,87731.0,87719.0,0.0114079]
[1766902114616,0.02473145,87730.0,87719.0,0.0114079]
[1766902114808,0.08181145,87729.0,87719.0,0.0114079]
[1766902115106,0.02473145,87728.0,87719.0,0.0114079]
[1766902118910,0.02473145,87728.0,87716.0,0.0114083]
[1766902120320,0.02473145,87728.0,87718.0,0.0114081]
[1766902124619,0.05708,87729.0,87718.0,0.0114081]
[1766902126619,0.02482286,87728.0,87718.0,0.0114081]
[1766902126820,0.05708,87729.0,87718.0,0.0114081]
[1766902127019,0.02482292,87728.0,87718.0,0.0114081]
[1766902127219,0.05708,87729.0,87718.0,0.0114081]
[1766902127419,0.0248229,87728.0,87718.0,0.0114081]
[1766902127612,0.05708,87729.0,87718.0,0.0114081]
[1766902127812,0.0248229,87728.0,87718.0,0.0114081]
[1766902128012,0.05708,87729.0,87718.0,0.0114081]
[1766902128212,0.0248229,87728.0,87718.0,0.0114081]
[1766902128414,0.05708,87729.0,87718.0,0.0114081]
[1766902128614,0.02482288,87728.0,87718.0,0.0114081]
[1766902128824,0.05708,87729.0,87718.0,0.0114081]
[1766902129022,0.02482288,87728.0,87718.0,0.0114081]
[1766902129224,0.05708,87729.0,87718.0,0.0114081]
[1766902129523,0.02482278,87728.0,87718.0,0.0114081]
[1766902129723,0.05708,87729.0,87718.0,0.0114081]
[1766902129923,0.02482278,87728.0,87718.0,0.0114081]
[1766902130222,0.05708,87729.0,87718.0,0.0114081]
[1766902130523,0.02482268,87728.0,87718.0,0.0114081]
[1766902130726,0.02482268,87727.0,87718.0,0.0114081]
[1766902130915,0.05708,87729.0,87718.0,0.0114081]
[1766902131116,0.02482268,87728.0,87718.0,0.0114081]
[1766902131317,0.02482268,87727.0,87718.0,0.0114081]
[1766902131618,0.05708,87729.0,87718.0,0.0114081]
[1766902131820,0.02482262,87728.0,87721.0,0.0114077]
[1766902132025,0.02482262,87727.0,87721.0,0.0114077]
[1766902132226,0.05708,87729.0,87721.0,0.0114077]
[1766902132426,0.02482259,87728.0,87721.0,0.0114077]
[1766902132728,0.02482259,87727.0,87721.0,0.0114077]
[1766902132926,0.05708,87729.0,87721.0,0.0114077]
[1766902133129,0.02482259,87728.0,87721.0,0.0114077]
[1766902133426,0.02482259,87727.0,87721.0,0.0114077]
[1766902133625,0.05708,87729.0,87721.0,0.0114077]
[1766902133826,0.02482259,87728.0,87721.0,0.0114077]
[1766902134126,0.02482259,87727.0,87721.0,0.0114077]
[1766902134331,0.05708,87729.0,87721.0,0.0114077]
[1766902134525,0.02482262,87728.0,87721.0,0.0114077]
[1766902134824,0.02482262,87727.0,87721.0,0.0114077]
[1766902135029,0.05708,87729.0,87721.0,0.0114077]
[1766902135223,0.02482262,87728.0,87721.0,0.0114077]
[1766902135423,0.02482262,87727.0,87721.0,0.0114077]
[1766902135622,0.05708,87729.0,87721.0,0.0114077]
[1766902135830,0.02482264,87728.0,87721.0,0.0114077]
[1766902136024,0.02482264,87727.0,87721.0,0.0114077]
[1766902136330,0.05708,87729.0,87721.0,0.0114077]
[1766902136532,0.02482262,87728.0,87721.0,0.0114077]
[1766902136725,0.02482262,87727.0,87721.0,0.0114077]
[1766902136927,0.05708,87729.0,87721.0,0.0114077]
[1766902137223,0.02482262,87728.0,87721.0,0.0114077]
[1766902137420,0.02482262,87727.0,87721.0,0.0114077]
[1766902137621,0.05708,87729.0,87721.0,0.0114077]
[1766902137822,0.0248226,87728.0,87721.0,0.0114077]
[1766902138122,0.0248226,87727.0,87721.0,0.0114077]
[1766902138322,0.05708,87729.0,87721.0,0.0114077]
[1766902138532,0.0248226,87728.0,87721.0,0.0114077]
[1766902138827,0.0248226,87727.0,87721.0,0.0114077]
[1766902139028,0.05708,87729.0,87721.0,0.0114077]
[1766902139217,0.0248226,87728.0,87721.0,0.0114077]
[1766902139423,0.0248226,87727.0,87721.0,0.0114077]
[1766902139622,0.05708,87729.0,87721.0,0.0114077]
[1766902139825,0.02482267,87728.0,87721.0,0.0114077]
[1766902140024,0.02482267,87727.0,87721.0,0.0114077]
[1766902140225,0.05708,87729.0,87721.0,0.0114077]
[1766902140426,0.0248226,87728.0,87721.0,0.0114077]
[1766902140632,0.0248226,87727.0,87721.0,0.0114077]
[1766902140828,0.05708,87729.0,87721.0,0.0114077]
[1766902141034,0.0248226,87728.0,87721.0,0.0114077]
[1766902141244,0.0248226,87727.0,87721.0,0.0114077]
[1766902141444,0.05708,87729.0,87721.0,0.0114077]
[1766902141647,0.02482261,87728.0,87721.0,0.0114077]
[1766902141945,0.02482261,87727.0,87721.0,0.0114077]
[1766902142146,0.05708,87729.0,87721.0,0.0114077]
[1766902142346,0.02482264,87728.0,87721.0,0.0114077]
[1766902142547,0.02482264,87727.0,87721.0,0.0114077]
[1766902142846,0.05708,87729.0,87721.0,0.0114077]
[1766902143036,6e-08,87728.0,87715.0,0.00017102]
[1766902143230,0.05708,87729.0,87715.0,0.00017102]
[1766902143436,0.05708,87729.0,87719.0,0.11450895]
[1766902144246,0.05708,87729.0,87722.0,0.0114075]
[1766902155248,0.08178896,87728.0,87722.0,0.0114075]
[1766902155453,0.02470896,87727.0,87720.0,0.0114078]
[1766902155653,0.05708,87728.0,87720.0,0.0114078]
[1766902155857,0.02470869,87727.0,87720.0,0.0114078]
[1766902156056,0.05708,87728.0,87720.0,0.0114078]
[1766902156355,0.02470872,87727.0,87717.0,0.0114081]
[1766902156553,0.05708,87728.0,87717.0,0.0114081]
[1766902156759,0.02470876,87727.0,87717.0,0.0114081]
[1766902156952,0.05708,87728.0,87717.0,0.0114081]
[1766902157153,0.02470876,87727.0,87717.0,0.0114081]
[1766902157349,0.05708,87728.0,87717.0,0.0114081]
[1766902157550,0.02470871,87727.0,87719.0,0.0114079]
[1766902157758,0.05708,87728.0,87719.0,0.0114079]
[1766902157958,0.02470872,87727.0,87719.0,0.0114079]
[1766902158159,0.05708,87728.0,87719.0,0.0114079]
[1766902158361,0.02470875,87727.0,87719.0,0.0114079]
[1766902158559,0.05708,87728.0,87719.0,0.0114079]
[1766902158755,0.02470873,87727.0,87719.0,0.0114079]
[1766902158957,0.05708,87728.0,87719.0,0.0114079]
[1766902159157,0.02470873,87727.0,87719.0,0.0114079]
[1766902159351,0.05708,87728.0,87719.0,0.0114079]
[1766902159557,0.02470873,87727.0,87719.0,0.0114079]
[1766902159759,0.05708,87728.0,87719.0,0.0114079]
[1766902159958,0.02470873,87727.0,87719.0,0.0114079]
[1766902160257,0.05708,87728.0,87719.0,0.0114079]
[1766902160458,0.02470873,87727.0,87719.0,0.0114079]
[1766902160759,0.05708,87728.0,87719.0,0.0114079]
[1766902161058,0.02470873,87727.0,87719.0,0.0114079]
[1766902161254,0.05708,87728.0,87719.0,0.0114079]
[1766902161454,0.02470874,87727.0,87719.0,0.0114079]
[1766902161654,0.05708,87728.0,87719.0,0.0114079]
[1766902161863,0.02470874,87727.0,87719.0,0.0114079]
[1766902162064,0.05708,87728.0,87719.0,0.0114079]
[1766902162264,0.02470874,87727.0,87719.0,0.0114079]
[1766902162457,0.05708,87728.0,87719.0,0.0114079]
[1766902162656,0.02470873,87727.0,87719.0,0.0114079]
[1766902162857,0.05708,87728.0,87719.0,0.0114079]
[1766902163057,0.02470873,87727.0,87719.0,0.0114079]
[1766902163356,0.05708,87728.0,87719.0,0.0114079]
[1766902163558,0.02470873,87727.0,87719.0,0.0114079]
[1766902163861,0.05708,87728.0,87719.0,0.0114079]
[1766902164064,0.02470873,87727.0,87719.0,0.0114079]
[1766902164252,0.05708,87728.0,87719.0,0.0114079]
[1766902164454,0.02470872,87727.0,87719.0,0.0114079]
[1766902164665,0.02470868,87726.0,87719.0,0.0114079]
[1766902164865,0.05708,87728.0,87719.0,0.0114079]
[1766902165066,0.02470868,87727.0,87719.0,0.0114079]
[1766902165252,0.02470868,87726.0,87719.0,0.0114079]
[1766902165456,0.05708,87728.0,87719.0,0.0114079]
[1766902165758,0.02470865,87727.0,87719.0,0.0114079]
[1766902165956,0.02470865,87726.0,87719.0,0.0114079]
[1766902166266,0.05708,87728.0,87719.0,0.0114079]
[1766902166457,0.02470863,87727.0,87719.0,0.0114079]
[1766902166657,0.02470863,87726.0,87719.0,0.0114079]
[1766902166858,0.05708,87728.0,87719.0,0.0114079]
[1766902167058,0.02470863,87727.0,87719.0,0.0114079]
[1766902167359,0.02470863,87726.0,87719.0,0.0114079]
[1766902167666,0.05708,87728.0,87719.0,0.0114079]
[1766902167860,0.02470861,87727.0,87721.0,0.0114077]
[1766902168056,1e-08,87726.0,87721.0,0.0114077]
[1766902168258,0.05708,87728.0,87721.0,0.0114077]
[1766902169566,0.05708,87728.0,87723.0,0.0114074]
[1766902170267,0.00017102,87738.0,87723.0,0.0114074]
[1766902170470,0.01310619,87737.0,87723.0,0.0114074]
[1766902170766,0.15404,87736.0,87723.0,0.0114074]